bitfinex/quotes_BTCUSD_20250519
["timestamp","ask_amount","ask_price","bid_price","bid_amount"]
[1747666804919,0.02875591,104320.0,104310.0,0.52928751]
[1747666805128,0.01917039,104320.0,104310.0,0.52928751]
[1747666805332,0.02875591,104320.0,104310.0,0.53235366]
[1747666805972,0.00958506,104320.0,104310.0,0.53235366]
[1747666806177,0.22245519,104330.0,104320.0,0.21088928]
[1747666806377,0.22245247,104330.0,104320.0,0.2204748]
[1747666806580,0.04992272,104330.0,104320.0,0.23964556]
[1747666807002,0.04992272,104330.0,104320.0,0.24271107]
[1747666807217,0.04992272,104330.0,104320.0,0.43759107]
[1747666807419,0.04992253,104330.0,104320.0,0.43759107]
[1747666807866,0.23203836,104330.0,104320.0,0.4184205]
[1747666808201,0.03075343,104330.0,104320.0,0.23312574]
[1747666808414,0.04033821,104330.0,104320.0,0.42800574]
[1747666808874,0.23562249,104330.0,104320.0,0.23312574]
[1747666809029,0.23562323,104330.0,104320.0,0.42800574]
[1747666809231,0.02475398,104330.0,104320.0,0.42800574]
[1747666809583,0.03154429,104340.0,104330.0,0.2204532]
[1747666809790,0.25197683,104340.0,104330.0,0.21086907]
[1747666810364,0.26156023,104340.0,104330.0,0.22045367]
[1747666810712,0.22045302,104330.0,104320.0,0.5030785]
[1747666810960,0.01916883,104330.0,104320.0,0.51266374]
[1747666811119,0.02875352,104330.0,104320.0,0.51266374]
[1747666811314,0.02875655,104320.0,104310.0,0.23510856]
[1747666811514,0.02875655,104320.0,104310.0,0.51567065]
[1747666811772,0.22047498,104320.0,104310.0,0.48691134]
[1747666811942,0.02875646,104320.0,104310.0,0.51567065]
[1747666812132,0.01917076,104320.0,104310.0,0.51567065]
[1747666812564,0.00458524,104320.0,104310.0,0.51873682]
[1747666812730,0.0511033,104340.0,104330.0,0.2108686]
[1747666812950,0.05110275,104340.0,104330.0,0.39612428]
[1747666813133,0.2108687,104330.0,104320.0,0.19171779]
[1747666813336,0.00958515,104320.0,104310.0,0.42338723]
[1747666813548,0.01916929,104330.0,104320.0,0.21088892]
[1747666813901,0.00958423,104330.0,104320.0,0.22354033]
[1747666814110,0.03293603,104340.0,104330.0,0.2108687]
[1747666814313,0.06068688,104340.0,104330.0,0.22045302]
[1747666814467,0.07227084,104340.0,104330.0,0.22045302]
[1747666814876,0.26395253,104340.0,104330.0,0.20128419]
[1747666815093,0.26395253,104340.0,104330.0,0.21086888]
[1747666815276,0.26395253,104340.0,104330.0,0.22045348]
[1747666815719,0.24478508,104340.0,104330.0,0.20128419]
[1747666816073,0.24478508,104340.0,104330.0,0.20733613]
[1747666816281,0.24578508,104340.0,104330.0,0.20733613]
[1747666816479,0.23978508,104340.0,104330.0,0.21692082]
[1747666816718,0.23020112,104340.0,104330.0,0.00605194]
[1747666816924,0.57875448,104340.0,104330.0,0.00605194]
[1747666817072,1.01606388,104340.0,104330.0,0.00605194]
[1747666817479,0.62391707,104340.0,104330.0,0.00605194]
[1747666817688,0.57020093,104340.0,104330.0,0.00605194]
[1747666817890,0.23020093,104340.0,104330.0,0.20733632]
[1747666818745,0.23020093,104340.0,104330.0,0.00605194]
[1747666818918,0.22061707,104340.0,104330.0,0.00605194]
[1747666820302,0.25151707,104340.0,104330.0,0.00605194]
[1747666820728,0.91935448,104340.0,104330.0,0.00605194]
[1747666820934,1.30687601,104340.0,104330.0,0.00605194]
[1747666821351,6.50463401,104340.0,104330.0,0.00605194]
[1747666821580,6.53917486,104340.0,104330.0,0.00605194]
[1747666821792,6.64007486,104340.0,104330.0,0.00605194]
[1747666821968,6.54642273,104340.0,104330.0,0.00605194]
[1747666822405,6.54442273,104340.0,104330.0,0.00605194]
[1747666822597,6.54642273,104340.0,104330.0,0.00605194]
[1747666822801,0.61368892,104320.0,104310.0,0.00298577]
[1747666822932,1.20227573,104320.0,104310.0,0.00298577]
[1747666823130,0.71099832,104320.0,104310.0,0.00298577]
[1747666823334,0.58128892,104320.0,104310.0,0.00298577]
[1747666823557,0.58128892,104320.0,104310.0,0.19472194]
[1747666823763,0.21088892,104320.0,104310.0,0.20430874]
[1747666823993,0.20130349,104320.0,104310.0,0.20737527]
[1747666824196,0.20130349,104320.0,104310.0,0.21796189]
[1747666824407,0.20130349,104320.0,104310.0,0.19878847]
[1747666824608,0.20130349,104320.0,104310.0,0.20837527]
[1747666825012,0.20130349,104320.0,104310.0,0.21796189]
[1747666825210,0.20128428,104330.0,104320.0,0.21088928]
[1747666825417,0.21086888,104330.0,104320.0,0.20130367]
[1747666825746,0.00958414,104330.0,104320.0,0.22047407]
[1747666825952,0.25595225,104340.0,104330.0,0.2108687]
[1747666826122,0.25595225,104340.0,104330.0,0.21086888]
[1747666826549,0.24636875,104340.0,104330.0,0.21086888]
[1747666827130,0.24636875,104340.0,104330.0,1.13991458]
[1747666827131,0.02593603,104340.0,104330.0,1.13991458]
[1747666827340,0.02893603,104340.0,104330.0,1.1662737]
[1747666828253,0.02893603,104340.0,104330.0,1.2055902]
[1747666828672,0.00495122,104340.0,104330.0,0.8140302]
[1747666828865,0.00295122,104340.0,104330.0,1.6199102]
[1747666829087,0.00336475,104360.0,104350.0,0.22041096]
[1747666829289,0.01294623,104360.0,104350.0,0.51256036]
[1747666829492,0.01294623,104360.0,104350.0,0.70980036]
[1747666830026,0.00336475,104360.0,104350.0,0.70980036]
[1747666830197,0.00336475,104360.0,104350.0,0.74370036]
[1747666830396,0.00336475,104360.0,104350.0,0.74676689]
[1747666830964,0.01294613,104360.0,104350.0,0.71486689]
[1747666831170,0.01294613,104360.0,104350.0,0.71886689]
[1747666831368,0.0225277,104360.0,104350.0,0.71886689]
[1747666831583,0.01294613,104360.0,104350.0,0.71886689]
[1747666831777,0.00958148,104360.0,104350.0,0.52162689]
[1747666832110,0.21098259,104370.0,104360.0,0.22038974]
[1747666832660,0.22038983,104360.0,104350.0,0.10637593]
[1747666832837,0.27660826,104360.0,104350.0,0.00906653]
[1747666833069,0.27660826,104360.0,104350.0,0.00306653]
[1747666833070,0.98822053,104360.0,104350.0,0.00306653]
[1747666833596,0.61660826,104360.0,104350.0,0.00306653]
[1747666834022,0.61660826,104360.0,104350.0,0.00506653]
[1747666834199,0.61660826,104360.0,104350.0,0.00606653]
[1747666834438,0.58390826,104360.0,104350.0,0.20731224]
[1747666834598,0.58390826,104360.0,104350.0,0.00886621]
[1747666835006,0.58390826,104360.0,104350.0,0.00686621]
[1747666835409,0.58390826,104360.0,104350.0,0.20911183]
[1747666835616,0.55080826,104360.0,104350.0,0.00786621]
[1747666835963,0.55080826,104360.0,104350.0,0.19952888]
[1747666836172,0.55080826,104360.0,104350.0,0.21869496]
[1747666836372,0.54122642,104360.0,104350.0,0.00786621]
[1747666836577,0.5316443,104360.0,104350.0,0.19952888]
[1747666836783,0.5626443,104360.0,104350.0,0.00786621]
[1747666837001,0.5955443,104360.0,104350.0,0.00786621]
[1747666837299,0.5626443,104360.0,104350.0,0.00786621]
[1747666837465,0.5316443,104360.0,104350.0,0.00786621]
[1747666838140,0.5648443,104360.0,104350.0,0.00786621]
[1747666839605,0.5909443,104360.0,104350.0,0.00786621]
[1747666839808,0.96255657,104360.0,104350.0,0.00786621]
[1747666840022,1.05986597,104360.0,104350.0,0.00786621]
[1747666840224,1.50014299,104360.0,104350.0,0.00786621]
[1747666840612,0.8862137,104360.0,104350.0,0.00786621]
[1747666841028,1.25782597,104360.0,104350.0,0.00786621]
[1747666841231,1.25782597,104360.0,104350.0,0.00479968]
[1747666841696,1.25786597,104360.0,104350.0,0.00479968]
[1747666841908,1.25786597,104360.0,104350.0,0.00379968]
[1747666842357,1.25886597,104360.0,104350.0,0.00279968]
[1747666842572,0.54124562,104350.0,104340.0,0.00506599]
[1747666843203,0.20124562,104350.0,104340.0,0.00506599]
[1747666843533,0.20124562,104350.0,104340.0,0.20633099]
[1747666843762,0.21082847,104350.0,104340.0,0.00506599]
[1747666843978,0.21082847,104350.0,104340.0,0.00606599]
[1747666844677,0.21082847,104350.0,104340.0,0.20733108]
[1747666844888,0.21082847,104350.0,104340.0,0.21691494]
[1747666845106,0.01916543,104350.0,104340.0,0.23608202]
[1747666845347,0.02874736,104350.0,104340.0,0.2388817]
[1747666845554,0.23957666,104350.0,104340.0,0.23988189]
[1747666845776,0.22999353,104350.0,104340.0,0.22071462]
[1747666845967,0.01916506,104350.0,104340.0,0.23988161]
[1747666846458,0.22041068,104350.0,104340.0,0.23029821]
[1747666846745,0.22041142,104350.0,104340.0,0.00986567]
[1747666846964,0.21082875,104350.0,104340.0,0.00986567]
[1747666847207,0.21082875,104350.0,104320.0,0.22681665]
[1747666847208,0.00958487,104330.0,104320.0,0.0095857]
[1747666847425,0.19171152,104340.0,104330.0,0.20128428]
[1747666847643,0.19171152,104340.0,104330.0,0.19169941]
[1747666847869,0.2108686,104330.0,104320.0,0.09778906]
[1747666848102,0.20128419,104330.0,104320.0,0.00047966]
[1747666848330,0.55805588,104330.0,104320.0,0.00047966]
[1747666848563,0.20128419,104330.0,104320.0,0.19219745]
[1747666848805,0.22506267,104350.0,104330.0,0.001]
[1747666849031,0.12043254,104340.0,104330.0,0.19269941]
[1747666849286,0.11084886,104340.0,104330.0,0.20128419]
[1747666849484,0.01916855,104330.0,104320.0,0.34438977]
[1747666849718,0.02875306,104330.0,104320.0,0.34238977]
[1747666849940,0.01916855,104330.0,104320.0,0.34238977]
[1747666850158,0.02875296,104330.0,104320.0,0.34238977]
[1747666850433,0.00958423,104330.0,104320.0,0.34538977]
[1747666850795,0.12043273,104340.0,104330.0,0.2108687]
[1747666851011,0.12043273,104340.0,104330.0,0.22045311]
[1747666851184,0.12043273,104340.0,104330.0,0.2108687]
[1747666852086,0.12043273,104340.0,104330.0,0.01058497]
[1747666852306,0.12043273,104340.0,104330.0,0.001]
[1747666852307,0.42513678,104340.0,104330.0,0.001]
[1747666852529,0.79593678,104340.0,104330.0,0.001]
[1747666852764,0.79593678,104340.0,104330.0,0.002]
[1747666855049,0.78993678,104340.0,104330.0,0.002]
[1747666856848,0.98455558,104340.0,104330.0,0.002]
[1747666857041,6.58771358,104340.0,104330.0,0.002]
[1747666857327,6.71315443,104340.0,104330.0,0.002]
[1747666857785,6.71315443,104340.0,104330.0,0.001]
[1747666858000,0.20128419,104330.0,104320.0,0.00047966]
[1747666858230,5.95183268,104330.0,104320.0,0.00047966]
[1747666858419,0.75407468,104330.0,104320.0,0.00047966]
[1747666858654,6.19452328,104330.0,104320.0,0.00047966]
[1747666858874,6.20452328,104330.0,104320.0,0.00047966]
[1747666859097,6.49839497,104330.0,104320.0,0.00047966]
[1747666859309,0.27220913,104310.0,104300.0,0.002]
[1747666859491,1.41945022,104310.0,104300.0,0.00213862]
[1747666860600,1.54949258,104310.0,104300.0,0.00213862]
[1747666860806,6.75725058,104310.0,104300.0,0.00213862]
[1747666861006,6.76725058,104310.0,104300.0,0.00213862]
[1747666861213,6.78990728,104310.0,104300.0,0.00213862]
[1747666861915,6.29464728,104310.0,104300.0,0.00213862]
[1747666862154,6.69088728,104310.0,104300.0,0.00213862]
[1747666862364,6.69588728,104310.0,104300.0,0.00213862]
[1747666862497,6.69584728,104310.0,104300.0,0.00213862]
[1747666862702,1.04369173,104310.0,104300.0,0.00213862]
[1747666862923,1.44081173,104310.0,104300.0,0.00213862]
[1747666863239,1.45069173,104310.0,104300.0,0.00213862]
[1747666863439,6.68689279,104310.0,104300.0,0.00213862]
[1747666863646,6.67689279,104310.0,104300.0,0.00213862]
[1747666863801,6.79874304,104310.0,104300.0,0.00213862]
[1747666864812,1.28057479,104310.0,104300.0,0.00213862]
[1747666865057,1.48037479,104310.0,104300.0,0.00213862]
[1747666865265,0.72753328,104310.0,104300.0,0.00213862]
[1747666865485,0.21092542,104310.0,104300.0,0.20348089]
[1747666865645,0.03375885,104310.0,104300.0,0.23224287]
[1747666865915,0.005,104310.0,104300.0,0.57224287]
[1747666866072,0.005,104310.0,104300.0,0.63734287]
[1747666866540,0.03375931,104310.0,104300.0,0.19695944]
[1747666866709,0.22549548,104310.0,104300.0,0.20654707]
[1747666866912,0.005,104310.0,104300.0,0.24853424]
[1747666867115,0.005,104310.0,104300.0,0.35543072]
[1747666867332,0.22349456,104310.0,104300.0,0.32666884]
[1747666867495,0.50778082,104310.0,104300.0,0.19695944]
[1747666867694,0.01617241,104310.0,104300.0,0.22672151]
[1747666867902,0.22047424,104320.0,104310.0,0.20132279]
[1747666868108,0.0191726,104310.0,104300.0,0.31344328]
[1747666868316,0.21090932,104310.0,104300.0,0.00520489]
[1747666868514,0.21090932,104310.0,104300.0,0.00920489]
[1747666868728,0.21090932,104310.0,104300.0,0.22013461]
[1747666869132,0.21090932,104310.0,104300.0,0.22972206]
[1747666869356,0.21090932,104310.0,104300.0,0.23272206]
[1747666869558,0.00958616,104310.0,104300.0,0.24230832]
[1747666869801,0.22047516,104320.0,104310.0,0.20131824]
[1747666870014,0.02875692,104320.0,104310.0,0.2204912]
[1747666870213,0.2204748,104320.0,104310.0,0.21090486]
[1747666870417,0.21088937,104320.0,104310.0,0.20131824]
[1747666870630,0.21090932,104310.0,104300.0,0.10951429]
[1747666870873,0.21090932,104310.0,104300.0,0.19689317]
[1747666871028,0.01917315,104310.0,104300.0,0.21606797]
[1747666871257,0.21090932,104310.0,104300.0,0.21606816]
[1747666871472,0.01917315,104310.0,104300.0,0.23224269]
[1747666871622,0.02875894,104310.0,104300.0,0.23224269]
[1747666871831,0.02875894,104310.0,104300.0,0.23224278]
[1747666872091,0.00958616,104310.0,104300.0,0.24182949]
[1747666872215,0.53169966,104330.0,104310.0,0.23008191]
[1747666872435,0.00958533,104320.0,104310.0,0.230082]
[1747666872639,0.02875682,104320.0,104310.0,0.22049584]
[1747666873049,0.04792758,104320.0,104310.0,0.22049584]
[1747666873282,0.03834538,104310.0,104300.0,0.3250691]
[1747666873451,0.22049612,104310.0,104300.0,0.00520515]
[1747666873655,0.22049612,104310.0,104300.0,0.20954742]
[1747666873889,0.21090959,104310.0,104300.0,0.1999597]
[1747666874100,0.21090959,104310.0,104300.0,0.1969597]
[1747666874304,0.21090959,104310.0,104300.0,0.20654724]
[1747666874500,0.21090959,104310.0,104300.0,0.22013469]
[1747666874722,0.01917296,104310.0,104300.0,0.23930912]
[1747666874884,0.01917296,104310.0,104300.0,0.2488962]
[1747666875090,0.01917296,104310.0,104300.0,0.24330912]
[1747666875305,0.02875885,104310.0,104300.0,0.2528962]
[1747666875510,0.03834501,104310.0,104300.0,0.24330912]
[1747666875705,0.04793172,104310.0,104300.0,0.24330912]
[1747666876091,0.22049621,104310.0,104300.0,0.2049597]
[1747666876292,0.22049621,104310.0,104300.0,0.22413505]
[1747666876501,0.22049621,104310.0,104300.0,0.2337225]
[1747666876715,0.22049621,104310.0,104300.0,0.24330986]
[1747666876915,0.22049621,104310.0,104300.0,0.25289657]
[1747666877145,0.21090941,104310.0,104300.0,0.23372214]
[1747666877383,0.21090941,104310.0,104300.0,0.23372159]
[1747666877384,0.02875903,104310.0,104300.0,0.23372159]
[1747666877535,0.04793117,104310.0,104300.0,0.22413451]
[1747666877737,0.23008136,104310.0,104300.0,0.21454742]
[1747666877939,0.21090913,104310.0,104300.0,0.21454742]
[1747666878143,0.21090913,104310.0,104300.0,0.01320515]
[1747666878348,0.21090913,104310.0,104300.0,0.21454724]
[1747666878609,0.21090913,104310.0,104300.0,0.22413487]
[1747666878744,0.21090913,104310.0,104300.0,0.23372232]
[1747666878939,0.21090913,104310.0,104300.0,0.00520515]
[1747666879186,0.21090913,104310.0,104300.0,0.00820515]
[1747666879620,0.60058587,104310.0,104300.0,0.00820515]
[1747666879839,0.63308587,104310.0,104300.0,0.00820515]
[1747666880048,0.73039527,104310.0,104300.0,0.00820515]
[1747666880419,1.27307527,104310.0,104300.0,0.00513862]
[1747666881008,0.68061853,104310.0,104300.0,0.00813862]
[1747666881244,0.08568104,104340.0,104320.0,0.01917113]
[1747666881463,0.02875288,104330.0,104320.0,0.22045671]
[1747666881691,0.23003781,104330.0,104320.0,0.21087137]
[1747666881918,0.23003781,104330.0,104320.0,0.23310895]
[1747666881919,0.00958423,104330.0,104320.0,0.23310895]
[1747666882303,0.02875306,104330.0,104320.0,0.24269419]
[1747666882504,0.02875306,104330.0,104320.0,0.23310895]
[1747666882681,0.23962213,104330.0,104320.0,0.21393782]
[1747666882857,0.01916855,104330.0,104320.0,0.24269419]
[1747666883058,0.02875306,104330.0,104320.0,0.24269374]
[1747666883265,0.02875306,104330.0,104320.0,0.4315485]
[1747666883461,0.00958414,104330.0,104320.0,0.4315474]
[1747666883667,0.02875288,104330.0,104320.0,0.42196234]
[1747666883873,0.02875288,104330.0,104320.0,0.41237746]
[1747666883874,0.03833757,104330.0,104320.0,0.41237746]
[1747666884028,0.21086861,104330.0,104320.0,0.20150645]
[1747666884235,0.2012841,104330.0,104320.0,0.20150645]
[1747666884523,0.2022841,104330.0,104320.0,0.39322424]
[1747666884866,0.2022841,104330.0,104320.0,0.20150645]
[1747666885049,0.2032841,104330.0,104320.0,0.39322424]
[1747666885458,0.2022841,104330.0,104320.0,0.39322424]
[1747666885588,0.2022841,104330.0,104320.0,0.20150645]
[1747666885788,0.2344841,104330.0,104320.0,0.20150645]
[1747666886203,0.2344841,104330.0,104320.0,0.00306645]
[1747666887008,0.2344841,104330.0,104320.0,0.19478424]
[1747666887209,0.2022841,104330.0,104320.0,0.19478424]
[1747666887335,0.2022841,104330.0,104320.0,0.19578424]
[1747666887540,0.19269941,104330.0,104320.0,0.00406645]
[1747666887743,0.19269941,104330.0,104320.0,0.19578424]
[1747666887943,0.19269941,104330.0,104320.0,0.00406645]
[1747666888156,0.21759941,104330.0,104320.0,0.00406645]
[1747666888359,1.04528555,104330.0,104320.0,0.00406645]
[1747666888768,0.68800881,104330.0,104320.0,0.00406645]
[1747666889180,0.65490881,104330.0,104320.0,0.00406645]
[1747666889383,0.52669941,104330.0,104320.0,0.19578424]
[1747666889587,0.22145367,104330.0,104320.0,0.19578424]
[1747666889794,0.48599257,104330.0,104320.0,0.19578424]
[1747666890008,0.48599257,104330.0,104320.0,0.20537003]
[1747666890218,0.22145348,104330.0,104320.0,0.19578424]
[1747666890425,0.22145348,104330.0,104320.0,0.20537012]
[1747666890838,0.22145348,104330.0,104320.0,0.21495591]
[1747666891834,0.22145348,104330.0,104320.0,0.19578424]
[1747666891975,0.46682309,104330.0,104320.0,0.19578424]
[1747666892175,0.49862309,104330.0,104320.0,0.00406645]
[1747666892614,0.49862309,104330.0,104320.0,0.19578424]
[1747666893016,0.49862309,104330.0,104320.0,0.00406645]
[1747666893226,0.52932309,104330.0,104320.0,0.00406645]
[1747666893425,0.89002309,104330.0,104320.0,0.00406645]
[1747666893635,0.96663249,104330.0,104320.0,0.00406645]
[1747666894044,1.16959249,104330.0,104320.0,0.00406645]
[1747666894253,1.37243249,104330.0,104320.0,0.00406645]
[1747666894541,6.57019049,104330.0,104320.0,0.00406645]
[1747666894748,6.57019049,104330.0,104320.0,0.001]
[1747666895368,6.56919049,104330.0,104320.0,0.001]
[1747666895784,6.57019049,104330.0,104320.0,0.001]
[1747666895998,0.58260913,104310.0,104300.0,0.00588064]
[1747666896208,0.84714803,104310.0,104300.0,0.00520575]
[1747666897152,0.84714803,104310.0,104300.0,0.00820575]
[1747666897376,0.58260913,104310.0,104300.0,0.00820575]
[1747666897592,0.84714803,104310.0,104300.0,0.00820575]
[1747666897795,0.84714803,104310.0,104300.0,0.01020575]
[1747666898199,0.21090913,104310.0,104300.0,0.01020575]
[1747666898438,0.24140913,104310.0,104300.0,0.01020575]
[1747666898637,0.53814803,104310.0,104300.0,0.01020575]
[1747666899059,1.14268693,104310.0,104300.0,0.01020575]
[1747666899260,0.87814803,104310.0,104300.0,0.01020575]
[1747666900253,1.43921976,104310.0,104300.0,0.00713862]
[1747666900461,6.96644836,104310.0,104300.0,0.00713862]
[1747666900868,6.95686174,104310.0,104300.0,0.00713862]
[1747666901184,6.96644836,104310.0,104300.0,0.00713862]
[1747666901542,6.96644836,104310.0,104300.0,0.00513862]
[1747666901951,6.88907518,104310.0,104300.0,0.00213862]
[1747666902176,7.30307518,104310.0,104300.0,0.00213862]
[1747666902372,7.30307518,104310.0,104300.0,0.00313862]
[1747666902577,6.77399738,104310.0,104300.0,0.00313862]
[1747666902776,2.10531718,104310.0,104300.0,0.00213862]
[1747666903292,2.10831718,104310.0,104300.0,0.00213862]
[1747666904150,2.11131718,104310.0,104300.0,0.00213862]
[1747666904640,7.30907518,104310.0,104300.0,0.00213862]
[1747666905289,7.32483955,104310.0,104300.0,0.00213862]
[1747666905608,7.30907518,104310.0,104300.0,0.00213862]
[1747666905813,1.88357633,104310.0,104300.0,0.00213862]
[1747666906020,1.26669633,104310.0,104300.0,0.00213862]
[1747666906241,0.94053853,104310.0,104300.0,0.00213862]
[1747666906440,0.96995743,104310.0,104300.0,0.00213862]
[1747666906708,1.14237743,104310.0,104300.0,0.00213862]
[1747666906949,1.17387743,104310.0,104300.0,0.00213862]
[1747666907154,0.90933853,104310.0,104300.0,0.00213862]
[1747666907364,1.13637743,104310.0,104300.0,0.00213862]
[1747666907570,0.83714803,104310.0,104300.0,0.00213862]
[1747666907771,0.83814803,104310.0,104300.0,0.00213862]
[1747666909687,0.57360913,104310.0,104300.0,0.00213862]
[1747666909887,0.83814803,104310.0,104300.0,0.00213862]
[1747666912063,0.83824803,104310.0,104300.0,0.00213862]
[1747666913558,0.02127296,104310.0,104300.0,0.22265524]
[1747666913764,0.22259584,104310.0,104300.0,0.21306816]
[1747666913968,0.22259584,104310.0,104300.0,0.21306834]
[1747666914183,0.2130095,104310.0,104300.0,0.21306834]
[1747666914305,0.2120095,104310.0,104300.0,0.21306834]
[1747666914506,0.01068634,104310.0,104300.0,0.23530969]
[1747666914712,0.02027296,104310.0,104300.0,0.30809677]
[1747666915094,0.01927223,104310.0,104300.0,0.30809677]
[1747666915295,0.03844529,104310.0,104300.0,0.31109677]
[1747666915560,0.03844529,104310.0,104300.0,0.27130969]
[1747666915774,0.03844529,104310.0,104300.0,0.28089696]
[1747666915974,0.02885848,104310.0,104300.0,0.31109696]
[1747666916134,0.01927214,104310.0,104300.0,0.31390693]
[1747666916334,0.0001,104310.0,104300.0,0.41121633]
[1747666916540,0.01927223,104310.0,104300.0,0.41121633]
[1747666917478,0.02885857,104310.0,104300.0,0.41121633]
[1747666917680,0.02885857,104310.0,104300.0,0.11032472]
[1747666917906,0.48513456,104310.0,104300.0,0.21435723]
[1747666918038,0.48513456,104310.0,104300.0,0.22394477]
[1747666918260,0.22059566,104310.0,104300.0,0.23353203]
[1747666918568,0.21090932,104310.0,104300.0,0.2431192]
[1747666920157,0.01917057,104320.0,104310.0,0.02875894]
[1747666920326,0.0383417,104320.0,104310.0,0.28759157]
[1747666920553,0.0383417,104320.0,104310.0,0.28519511]
[1747666920710,0.23005949,104320.0,104310.0,0.2660227]
[1747666920882,0.23006013,104320.0,104310.0,0.2426095]
[1747666921085,0.23006013,104320.0,104310.0,0.26178228]
[1747666921328,0.457139,104330.0,104320.0,0.19171779]
[1747666921499,0.22135426,104330.0,104320.0,0.21088928]
[1747666921677,0.21176994,104330.0,104320.0,0.20130367]
[1747666921879,0.01917113,104320.0,104310.0,0.3563814]
[1747666922126,0.01917104,104320.0,104310.0,0.3649682]
[1747666922358,0.02875674,104320.0,104310.0,0.3649682]
[1747666922574,0.02875628,104320.0,104310.0,0.3649682]
[1747666922875,0.01917067,104320.0,104310.0,0.3969682]
[1747666923072,0.02875628,104320.0,104310.0,0.3969682]
[1747666923605,0.01917067,104320.0,104310.0,0.3969682]
[1747666923931,0.20318507,104330.0,104320.0,0.21088892]
[1747666923932,0.21276976,104330.0,104320.0,0.21088892]
[1747666924331,0.21176976,104330.0,104320.0,0.21088892]
[1747666924537,0.21176976,104330.0,104320.0,0.2108891]
[1747666924887,0.21176976,104330.0,104320.0,0.22047462]
[1747666925093,0.21084886,104340.0,104330.0,0.21086888]
[1747666925300,0.22043245,104340.0,104330.0,0.21086888]
[1747666925512,0.22043245,104340.0,104330.0,0.21086906]
[1747666925921,0.22043245,104340.0,104330.0,0.22045375]
[1747666926122,0.22043245,104340.0,104330.0,0.23310499]
[1747666926269,0.2300165,104340.0,104330.0,0.23310499]
[1747666926475,0.22043245,104340.0,104330.0,0.2426894]
[1747666926708,0.2300165,104340.0,104330.0,0.2426894]
[1747666926913,0.01058331,104340.0,104330.0,0.24268885]
[1747666927066,0.02975058,104340.0,104330.0,0.30578885]
[1747666927265,0.03933444,104340.0,104330.0,0.30578885]
[1747666927521,0.04033444,104340.0,104330.0,0.27749882]
[1747666927723,0.03075058,104340.0,104330.0,0.27749882]
[1747666928044,0.23201567,104340.0,104330.0,0.21674558]
[1747666928251,0.23201567,104340.0,104330.0,0.22633018]
[1747666928460,0.23201567,104340.0,104330.0,0.23591459]
[1747666928640,0.23201567,104340.0,104330.0,0.23591469]
[1747666929065,0.04033444,104340.0,104330.0,0.24268904]
[1747666929370,0.03075058,104340.0,104330.0,0.24268904]
[1747666930382,0.04033444,104340.0,104330.0,0.24268904]
[1747666930746,0.24159953,104340.0,104330.0,0.24268904]
[1747666931211,0.02116681,104340.0,104330.0,0.24268904]
[1747666931410,0.002,104340.0,104330.0,0.33999844]
[1747666931614,0.02116681,104340.0,104330.0,0.33999844]
[1747666931828,0.002,104340.0,104330.0,0.40179844]
[1747666932039,0.002,104340.0,104330.0,0.75633929]
[1747666932260,0.002,104340.0,104330.0,0.76289128]
[1747666932465,0.001,104340.0,104330.0,0.76289128]
[1747666932864,0.002,104350.0,104340.0,0.26497293]
[1747666933072,0.002,104350.0,104340.0,0.79676233]
[1747666933726,0.002,104350.0,104340.0,0.79982906]
[1747666934140,0.00248004,104350.0,104340.0,0.79982906]
[1747666934870,0.00248004,104350.0,104340.0,1.14382906]
[1747666935306,0.00248004,104350.0,104340.0,1.15038105]
[1747666935555,0.00248004,104350.0,104340.0,1.15438105]
[1747666936281,0.02522492,104360.0,104350.0,0.22041096]
[1747666936576,0.01573504,104360.0,104350.0,0.31772036]
[1747666937496,0.02531679,104360.0,104350.0,0.31972036]
[1747666937750,0.00967334,104360.0,104350.0,0.32859706]
[1747666938354,0.00967334,104360.0,104350.0,0.39179706]
[1747666938988,0.01925491,104360.0,104350.0,0.39179706]
[1747666939191,0.02883666,104360.0,104350.0,0.32859706]
[1747666939409,0.03841869,104360.0,104350.0,0.32859706]
[1747666939622,0.01925491,104360.0,104350.0,0.32859706]
[1747666940093,0.00967334,104360.0,104350.0,0.32859706]
[1747666940535,0.01925482,104360.0,104350.0,0.32859706]
[1747666940744,0.02883648,104360.0,104350.0,0.32859706]
[1747666940961,0.03841832,104360.0,104350.0,0.32859706]
[1747666941602,0.02883648,104360.0,104350.0,0.32859706]
[1747666941722,0.01925482,104360.0,104350.0,0.32859706]
[1747666942290,0.02883639,104360.0,104350.0,0.32859706]
[1747666942549,0.23006253,104360.0,104350.0,0.0108767]
[1747666942775,0.24190013,104360.0,104350.0,0.0108767]
[1747666942988,0.53823903,104360.0,104350.0,0.0108767]
[1747666943213,0.87823903,104360.0,104350.0,0.0108767]
[1747666943422,0.61370013,104360.0,104350.0,0.0108767]
[1747666943642,0.60411829,104360.0,104350.0,0.01461872]
[1747666944076,0.86265719,104360.0,104350.0,0.01461872]
[1747666944690,0.52265719,104360.0,104350.0,0.01461872]
[1747666945363,0.86265719,104360.0,104350.0,0.01461872]
[1747666945583,0.95996659,104360.0,104350.0,0.01461872]
[1747666946461,0.95996659,104360.0,104350.0,0.01261872]
[1747666946673,0.95996659,104360.0,104350.0,0.00961872]
[1747666946890,0.06165049,104340.0,104330.0,0.01916929]
[1747666947104,0.01916672,104340.0,104330.0,0.22045193]
[1747666947321,0.00958322,104340.0,104330.0,0.22045193]
[1747666947538,0.21082829,104350.0,104340.0,0.21084886]
[1747666947736,0.22041133,104350.0,104340.0,0.20126509]
[1747666947962,0.22041133,104350.0,104340.0,0.21084905]
[1747666948144,0.22041133,104350.0,104340.0,0.21391468]
[1747666948445,0.24122866,104350.0,104340.0,0.00306563]
[1747666948651,0.52718461,104350.0,104340.0,0.00306563]
[1747666948858,0.52718461,104350.0,104340.0,0.19474667]
[1747666949270,0.52573626,104360.0,104340.0,0.21391394]
[1747666949271,0.21823626,104360.0,104340.0,0.21391394]
[1747666949485,0.04208193,104360.0,104350.0,0.22041114]
[1747666949783,0.2203901,104360.0,104350.0,0.22999372]
[1747666949974,0.01916359,104360.0,104350.0,0.22041114]
[1747666950217,0.03832682,104360.0,104350.0,0.22999363]
[1747666950421,0.04790894,104360.0,104350.0,0.23305926]
[1747666950630,0.2203902,104360.0,104350.0,0.21389429]
[1747666950841,0.2223902,104360.0,104350.0,0.2330599]
[1747666951037,0.2223902,104360.0,104350.0,0.24264257]
[1747666951242,0.23197241,104360.0,104350.0,0.24264211]
[1747666951451,0.02116332,104360.0,104350.0,0.24264165]
[1747666951656,0.53694707,104360.0,104350.0,0.00306563]
[1747666951862,0.53094707,104360.0,104350.0,0.00306563]
[1747666952069,0.96825647,104360.0,104350.0,0.00306563]
[1747666952492,0.96825647,104360.0,104320.0,0.02875664]
[1747666952493,0.02875333,104330.0,104320.0,0.02875664]
[1747666952699,0.04792289,104330.0,104320.0,0.23005756]
[1747666952922,0.19169941,104330.0,104310.0,0.84920256]
[1747666953080,0.01917058,104320.0,104310.0,0.51944474]
[1747666953276,0.00958515,104320.0,104310.0,0.5290309]
[1747666953488,0.01916883,104330.0,104320.0,0.2204737]
[1747666953711,0.03833802,104330.0,104320.0,0.22047407]
[1747666954044,0.03833802,104330.0,104320.0,0.22547407]
[1747666954474,0.04792289,104330.0,104320.0,0.22095411]